Workbook

Sheet 1
B1: Расчет ГРП
B2: 1. Рассчитываем по формуле вертикальную составляющую горного давления:
B3: Рг.в.=ρп*g*Нскв.*10-6 | L3: http://www.neftvnb.ru/text/biblioteka/grp_02.pdf
B4: Рг.в.=2310*9,81*2850*10^-6 =64,58МПа | J4: =$O$15*$O$30*$O$5*10^-6 -> 64.584135 | L4: Исходные данные
L5: глубина пласта | M5: Н | N5: м | O5: 2850
B6: 2. Рассчитываем по формуле горизонтальную составляющую горного давления: | L6: Диаметр по долоту
B7: Рг.г=Рг.в. * н / ( 1- н ) | L7: радиус скважины | M7: rс | N7: м | O7: 0.075
B8: Рг.г.=64,58*(0,2729/(1-0,2729))= 24,240 МПа | J8: =$J$4*$O$13/(1-$O$13) -> 24.24014639 | L8: радиус контура питания | M8: Rк | N8: м | O8: 1500
B9: 3.Рассчитываем по формуле давление разрыва: | L9: внутренний диаметр (нкт) | M9: DВ2 | N9: мкм2 | O9: 0.076
B10: Рраз= Рг.в. – Рпл+ Рs | L10: толщна пласта | M10: h | N10: м | O10: 12.9
B11: 3.1 Рраз. = 64,58 - 28,5 + 1,5=37,6 МПа | J11: =$J$4-$O$24+$O$22 -> 37.584135 | L11: средняя проницаемость | N11: мкм2 | O11: 0.0047
L12: модуль упругости пород | M12: Е | O12: 1,265*10^11
L13: коэффициент пуассона | M13: v | O13: 0.2729
B14: Рзаб/Рг*(Рзаб/Рг-1)^3=5,25*(Е^2)*Q*μ/((1-v^2)^2)*Рг^2*Vж)=0,00217 | L14: Дебит до ГРП
B15: 3.2 Рзаб/Рг*(Рзаб/Рг-1)^3 = | D15: 5,25*(1,265*10^11)^2*0,012*0,2/((1-0,2729^2)^2*(24,24*10^6)^3*7,6) = | J15: =5.25*(1.265*10^11)^2*$O$19*0.2/((1-$O$13^2)^2*($J$8*10^6)^3*$O$21) -> 0.002174480046 | L15: средняя плотность вышележащих горных пород | M15: ρп | N15: кг/м3 | O15: 2310
I16: =J17/J18*(J17/J18-1)^3 -> 0.002812486718 | J16: 0.002174480046 | L16: плотность жидкости песконосителя | M16: ρж.п. | N16: кг/м3 | O16: 930
I17: Рзаб | J17: 27.52004751 | L17: Вязкость жидкости песконосителя | M17: wж | N17: Па*с | O17: 0.2
I18: Рг | J18: =J8 -> 24.24014639 | L18: концентрация песка в 1 м3 жид. (кг/м3)(Сп = 250…300 кг/м3) | M18: Сп | N18: кг/м3 | O18: 275
B19: 4.По формуле рассчитываем объемную концентрацию песка: | J19: =22/$J$8*(22/$J$8-1)^3 -> -0.0007163263514 | L19: темп закачки жидкости гидроразрыва | M19: Q | N19: м3/с | O19: 0.012
B20: Вп =(Сп/ρпс)/(Сп/ρпс +1) | L20: Проницаемость породы
B21: Вп =(275/2310)/275/2310+1)=0,106 | J21: =$O$18/$O$15/($O$18/$O$15+1) -> 0.1063829787 | L21: Объем песка (жидкости) | M21: Qп | N21: тонн | O21: 7.6
L22: давление расслоения пород | M22: Рs | N22: МПа | O22: 1.5
B23: 5. Плотность жидкости- песконосителя рассчитывается по формуле: | L23: плотность песка | M23: ρпс | N23: кг/м3 | O23: 2500
B24: ρж.п. = ρп `ж.п.*(1-Вп) + сп.*Вп | L24: пластовое давление | M24: Рпл | N24: МПа | O24: 28.5
B25: ρж.п. = 930*(1-0,106)+2310*0,106 = 1076,8кг/м3 | J25: =$O$16*(1-$J$21)+$O$15*$J$21 -> 1076.808511 | L25: число е | M25: e | O25: 2.718
L26: коэффициент технического состояния агрегата | M26: Кт.с. | O26: 0.8
B27: 6. Вязкость жидкости разрыва с песком рассчитываем по формуле | L27: рабочее давление агрегата | M27: Pp | N27: МПа | O27: 29
B28: μж.п. = μ'ж.п. *ехр(3,18*Вп) | L28: подача агрегата при данном Рр | M28: Qp | N28: м3/с | O28: 0.0146
B29: μж.п. = 0,2*ехр(3,18*0,106) = 0,280 Па*с | J29: =$O$17*$O$25^(3.18*$J$21) -> 0.2805018058 | L29: Коэффициент разрыва | O29: 1.6
L30: ускорение | M30: g | N30: м/с2 | O30: 9.81
B31: 7. Число Рейнольдса определяется по формуле
B32: Re = 4*Q*ρж.п/(π*dнкт*μж.п.)
B33: Rе=(4*0,012*1076,8)/(3,14*0,076*0,281)= 772,1 | J33: =4*$O$19*J25/(3.14*$O$9*$J$29) -> 772.1484694
B34: =(4*0.012*1076.8)/(3.14*0.076*0.281) -> 770.7734099
B35: 8. Коэффициент гидравлического сопротивления определим по формуле
B36: λ = 64/Re
B37: λ=64/772,1=0,083 | J37: =64/$J$33 -> 0.08288561401
B39: 9. Потери на трение рассчитываются по формуле
B40: Ртр'=8* λ* Q2* Нскв.* ρж.п./(π2* dвн5)
B41: Ртр'=8*0,083*0,012^2*2850*1076,8/(3,14^2*0,076^5)*10^-6 = 11,7 мПа | J41: =8*$J$37*$O$19^2*$O$5*$J$25/(3.14^2*$O$9^5)*10^-6 -> 11.72162221
B43: 10. Если число Rе больше 200, то потери давления на трение увеличиваются в 1,52 раза
B45: Ртр.=1,52*11,7= 17,8 мПа | J45: =$J$41*1.52 -> 17.81686576
B47: 11.Давление на устье скважины рассчитываются по формуле
B48: Ру=Рраз-ρж.п.*g*Нскв*10-6+Ртр'
B49: Ру=27,52 - (1076,8*9,81*2850)*10^-6+17,8= 15,2 мПа | J49: =$J$17-($J$25*$O$30*$O$5)*10^-6+$J$45 -> 15.23096253
B51: 12. Для определения необходимого числа насосных агрегатов используем формулу
B52: N = (Ру*Q)/(Pp*Qp*Кт.с.) + 1
B53: N=(15,2*0,012)/(29*0,0146*0,6)+1=1,7 = 2 агрегата | J53: =$J$49*$O$19/(29*0.0146*0.6)+1 -> 1.719459732
B54: Рр=29МПа -рабочее давление агрегата 4АН-700 на 4 скорости
B55: Qр=0,0146м3/с – подача агрегата;
B56: Ктс=0,5-0,8 – коэффициент технического состояния агрегата (0,6)
J57: =ROUND(J53,1) -> 1.7
B58: 13. Необходимый объем продавки рассчитывается по формуле
B59: Vп=0,785*d2вн.* Нскв.
B60: Vп.=0,785*0,076^2*2850=12,92м3 | J60: =0.785*$O$9^2*$O$5 -> 12.922356
B62: 14. Объем жидкости песконосителя при концентрации в ней песка рассчитывается по формуле
B63: Vж.=Vп/Cп
B64: Vж.=7,6*10^3/275=27,6м3 | J64: =(O$21*10^3)/$O$18 -> 27.63636364
B66: 15. Определяем время проведения ГРП по
B67: Т=(Vж. + Vп.)/Qр
B68: Т=(7,6+12,92)/(0,0146*60)=23,4мин. | J68: =((O21+$J$60)/(0.0146*60)) -> 23.42734703
B70: 16. Для определения длины трещины используем формулу
B72: L=(7,6*1,265*10^11/(5,6*(1-0,2729^2)*12,9*(27,52-24,24)*10^6))^0,5= 66,2 м | J72: =($O$21*1.265*10^11/(5.6*(1-$O$13^2)*$O$10*($J$17-$J$8)*10^6))^0.5 -> 66.21228855
B74: 17. Для определения ширины трещины используем формулу
B75: Wo=(4*(1-н2)*L*(Рзаб.р.-Рг.г.)) / Е
B76: Wo=(4*(1-0,2729^2)*66,2*(27,26-24,24)*10^6)/(1,265*10^11)= 0,006м | J76: =(4*(1-$O$13^2)*$J$72*((J17-$J$8)*10^6))/(1.265*10^11) -> 0.006355610111
B78: Проницаемость трещины
B79: kт=ω^2/12
B80: kт=0,006^2/12=0,0000034мкм2 | J80: =$J$76^2/12 -> 3.366148324e-06
B82: Эффект от ГРП
B83: Q2/Q1=lg(Rk/rc)/lg(Rk/l/2)
B84: Q2/Q1=LN(1500/0,075)/LN(1500/(66,2/2)) | J84: =LN($O$8/0.075)/LN($O$8/($J$72/2)) -> 2.596953893
B85: Увеличение дебита в 2,6 раза
B87: Вывод: основные характеристики ГРП
B88: забойное давление разрыва: Рзаб = | H88: =$J$17 -> 27.52004751 | I88: МПа
B89: давление на устье скважины: Ру= | H89: =J49 -> 15.23096253 | I89: МПа
B90: объём продавочной жидкости: Vп= | H90: =J60 -> 12.922356 | I90: м3
B91: объём жидкости для ГРП: Vж= | H91: =J64 -> 27.63636364 | I91: м3
B92: время работы | H92: =J68 -> 23.42734703 | I92: мин
B93: Для ГРП необходимо агрегат: 4АН-70 | H93: =J57 -> 1.7 | I93: шт

Sheet Лист1
